{"text_format":"2","workbook":"xlsx","n_sheets":1,"sheets":["LOT 3 - Namjestaj"],"not_rendered":{"charts":0,"images":1,"macros":0,"external_links":0,"defined_names":0,"comments":0,"pivot_tables":0},"unopened":[],"bounds":{"document_bytes":16777216,"sheet_cells":100000,"run_cost":"one","rows_first":2000,"rows_last":500,"rows_between":2000,"halvings":0,"cell_chars":16384,"cell_head_chars":4096},"cells_cut":0,"cells_raw":0,"read":"whole","date_system":"1900"}

{"sheet":"LOT 3 - Namjestaj","index":0,"n_rows":36,"n_cols":9,"rows_kept":36,"cut":false,"hidden":false,"merged":[[3,0,3,8],[34,5,34,6],[34,7,34,8],[35,5,35,6],[35,7,35,8],[34,0,35,4]]}
[]
[]
[]
["LOT 3 - Namještaj / Furniture"]
["R.br.","Naziv i opis stavke","Lokacija isporuke","Jedinica mjere","Količina","Jedinična cijena bez PDV-a","Ukupna cijena bez PDV-a","Jedinična cijena sa PDV-om","Ukupna cijena sa PDV-a"]
[1,"Ormar za predsoblje petokrilni. Dimenzije 2500 x 3100 x 550 mm\nMaterijal: Iveral, kantiran korpus kant trakom debljine 0,5 mm, frontovi kantirani kant trakom debljine 2 mm.\nPoleđina ormara izrađena od MDF-a debljine 3 mm, jednostrano bijele boje. Nogice od aluminijuma visine 100 mm.","Gracanica","kom",1,null,{"$f":"E6*F6","v":0},{"$f":"F6*1.17","v":0},{"$f":"E6*H6","v":0}]
[2,"Ormar u predulazu WC-a. \nDimenzije 3100 x 1000 x 500 mm\nMaterijal: Iveral, kantiran korpus kant trakom debljine 0,5 mm, frontovi kantirani kant trakom debljine 2 mm.\nPoleđina ormara izrađena od MDF-a debljine 3 mm, jednostrano bijele boje. Nogice od aluminijuma visine 100 mm.","Gracanica","kom",1,null,{"$f":"E7*F7","v":0},{"$f":"F7*1.17","v":0},{"$f":"E7*H7","v":0}]
[3,"Ormar u predulazu WC-a. \nDimenzije 3100 x 500 x 500 mm\nMaterijal: Iveral, kantiran korpus kant trakom debljine 0,5 mm, frontovi kantirani kant trakom debljine 2 mm.\nPoleđina ormara izrađena od MDF-a debljine 3 mm, jednostrano bijele boje. Nogice od aluminijuma visine 100 mm.","Gracanica","kom",1,null,0,0,0]
[4,"Kuhinja ugaona (L). Dimenzije 3500 x 1850 mm\nMaterijal: Radna ploča debljine 38 mm,\nOstali elementi kuhinje od oplemenjenog iverala.\nDezen iverala - Sowoma. Latičar element sastoji se od 3 ladice, jedna\nplitka i dvije duboke. Klizači za iste sa ublaživačima udara. Svi kuhinjski elementi su postavljeni na nogicama h 100 mm, te ih\nposlije pokriva ukrasno coklo visine h 100 mm, koje se postavlja po\nsistemu KLIK-KLAK. Broj elemanata kuhinje se određuje na licu mjesta po\ndogovoru sa investitorom. Broj polica u gornjim elementima je 3 kom. a u\ndonjim elementima po jedna polica. Korito je okruglo ugradbeno sa rupom\nza postavljanje armature/česme.\nGornji kuhinjski elementi se postavljaju na šinu. Na svim vratima se postavlja ublaživač udara.","Gracanica","kom",1,null,0,0,0]
[5,"Ormar sa kliznim vratima\nŠirina 200cm, visina 290 cm, dubina 60 cm. Napraviti prostor sa dijelom u kojem će biti smješteni registratori, dio za vješalicama te donji dio sa ladicama. Prije izrade plakara mjere provjeriti na licu mjesta te usaglastiti boje sa korisnicima (siva i narandžasta). Materijal oplemenjena iverica ","Laktasi","kom",1,null,0,0,0]
[6,"Sklopivi konferencijski stol     Konstrukcija izradjena od metalnih profila 6x6cm.\nDupli mehanizam preklopa ploče stola.\nOpremljeno sa pločom od iverice u dim 120x70cm\nZavrsna obrada: plastifikacija u crnu mat boju ili u boju po\nzelji narucioca.\nPostolje opremljeno sa 4 po visini podesive gumirane\nnogice. Konzumna ploča: iverica – dekor tamni hrast u\ndimenziji 120x70cm","Laktaši","kom",4,null,0,0,0]
[7,"Stolić                                                     Dimenzije 55x55, Boja:  siva, Materijal: bambus, tri noge","Laktaši","kom",5,null,0,0,0]
[8,"Stolica                                                          Materijal: pjena, metal, šperploča, Poliesterska vlakna\nObrada\tpremaz u prahu\nBoja: beton siva, Hrast\nDimenzije nakon montaže: (š)44 cm, (v)87 cm, (d)53 cm\nTežina: 5 kg","Laktaši","kom",20,null,0,0,0]
[9,"Kanta za otpad PVC, zapremine 30l","Banja Luka","kom",5,null,0,0,0]
[10,"Radni stol\nDimenzije 144 × 72 × 72 cm\nBoja:\tSonoma","Banja Luka","kom",15,null,0,0,0]
[11,"Uredska fotelja\nMaterijal: eko koža/mreža\nVisina: 115 cm\nŠirina: 64 cm\nDubina: 49 cm","Banja Luka","kom",15,null,0,0,0]
[12,"Uredska stolica\nBoja:crvena\nUkupna visina 86 cm\nVisina sjedista 46 cm\nUkupna sirina 56 cm\nSirina sjedista 46 cm\nDubina sjedista 41 cm\nVisina rukonaslona 63 cm\ncrno bojena metalna konstrukcija sa rukonaslonima\ndeb. Spuzve na naslonu: 20 mm,\ndeb. spuzve na sjedistu: 20 mm\notpresak u naslonu i sjedalu\nsloziva\nnosivost: 110 kg","Banja Luka","kom",4,null,0,0,0]
[13,"Konferencijska stolica bez rukonaslona\nBoja: zelena\nUkupna visina 86 cm\nVisina sjedista 46 cm\nUkupna sirina 56 cm\nSirina sjedista 46 cm\nDubina sjedista 41 cm\nVisina rukonaslona 63 cm\ncrno bojena metalna konstrukcija sa rukonaslonima\ndeb. Spuzve na naslonu: 20 mm,\ndeb. spuzve na sjedistu: 20 mm\notpresak u naslonu i sjedalu\nsloziva\nnosivost: 110 kg","Banja Luka","kom",4,null,0,0,0]
[14,"Konferencijska stolica bez rukonaslona\nBoja: plava\nUkupna visina 86 cm\nVisina sjedista 46 cm\nUkupna sirina 56 cm\nSirina sjedista 46 cm\nDubina sjedista 41 cm\nVisina rukonaslona 63 cm\ncrno bojena metalna konstrukcija sa rukonaslonima\ndeb. Spuzve na naslonu: 20 mm,\ndeb. spuzve na sjedistu: 20 mm\notpresak u naslonu i sjedalu\nsloziva\nnosivost: 110 kg","Banja Luka","kom",4,null,0,0,0]
[15,"Ormar uredski\nDimenzije: š79,v221.2cm,d35\nMeterijal: iveral\nBoja: vrata tamno siva visoko sjaj, strane svijetlo siva","Banja Luka","kom",5,null,0,0,0]
[16,"Poličar (sa vratima i 4 police iznad)\nDimenzije: š79,v221.2,d35\nMeterijal: iveral\nBoja: vrata tamno siva visoko sjaj, strane i police svijetlo siva","Banja Luka","kom",2,null,0,0,0]
[17,"Policar sa 5 polica\nDimenzije: š79,v221.2,d35\nMeterijal: iveral\nBoja: svijetlo siva","Banja Luka","kom",5,null,0,0,0]
[18,"VJEŠALICA \nDimenzije: ($)74x(d)19x (v)127 cm. Materijal: iveral. Boja: hrast sonoma","Banja Luka","kom",3,null,0,0,0]
[19,"Klub stol\nDimenzije: (š)48x(d)67x(v)67cm \nMaterijal: iveral \nBoja: hrast/bijela","Banja Luka","kom",3,null,0,0,0]
[20,"Ladičar\nMaterijal: iveral\nDimenyije 38.5x40.2x58.2 cm\nBoja:  vrata tamno siva visoko sjaj, strane svijetlo siva","Banja Luka","kom",15,null,0,0,0]
[21,"Ormar sa kliznim vratima\nmaterijal:iveral\nboja: bijela i siva\nVisina: 185 cm\nŠirina: 100 cm\nDubina: 55 cm","Banja Luka","kom",5,null,0,0,0]
[22,"Kuhinja\nGornji elementi: (š)200x(d)60x(v)91cm\nDonji elementi: (š)260x(d)30x(v)72cm\nMaterijal: iveral\nBoja: whitewood/graphitewood\nšina,pult lajsna i završetci za pult lajsnu","Banja Luka","kom",1,null,0,0,0]
[23,"Trpezarijski stol\nDimenzije:(v)75x(d)120x(š)80 cm; Materijal: iveral; Boja: hrast sonoma","Banja Luka","kom",1,null,0,0,0]
[24,"Stolica\nDimenzija: (v)91x(d)43x(š)42x(v.s.)50 cm Materijal: bukva štof: capry 1003 Boja: wenge bež","Banja Luka","kom",4,null,0,0,0]
[25,"Sudoper ugradbeni, 770x500x190mm sa sifonom","Banja Luka","kom",1,null,0,0,0]
[26,"Kancelarijski stol, Š 750 x D 1500 x V= 750mm  Materija: Bukva, Boja: smeđa","Tešanj","kom",1,null,0,0,0]
[27,"Pomoćni stol D 750 x Š 750 x V 500mm  Materija: drvo bukva, Boja: smeđa","Tešanj","kom",1,null,0,0,0]
[28,"Otvorena polica za registratore V 2100 x Š 2200 x D 400mm Materija: drvo bukva Boja: Smeđa","Tešanj",null,1,null,0,0,0]
[29,"Uredska fotelja Visina: 118 cm, Širina: 64 cm, Dubina: 75 cm, materijal-umjetna koža, boja- crna","Tešanj","kom",2,null,0,0,0]
["UKUPNO",{"$nulls":4},"Ukupna vrijednost bez PDV-a",null,"Ukupna vrijednost sa PDV-om"]
[{"$nulls":5},{"$f":"SUM(G6:G34)","v":0},null,{"$f":"SUM(I6:I34)","v":0}]